bitfinex-derivatives/quotes_BTCF0:USTF0_20250901
["timestamp","ask_amount","ask_price","bid_price","bid_amount"]
[1756708286194,0.86941628,108030.0,108020.0,0.63550253]
[1756708287200,0.86941628,108030.0,108020.0,0.3608]
[1756708287394,0.86941628,108030.0,108020.0,0.63550253]
[1756708288205,0.01893628,108030.0,108020.0,0.63550253]
[1756708288497,0.87049628,108030.0,108020.0,0.63550253]
[1756708288692,0.87049628,108030.0,108020.0,0.63650253]
[1756708288892,0.01993628,108030.0,108020.0,0.88650253]
[1756708289094,0.01993628,108030.0,108020.0,0.95311286]
[1756708289596,0.01993628,108030.0,108020.0,0.68041033]
[1756708289597,0.01893628,108030.0,108020.0,0.68041033]
[1756708289895,0.01893628,108030.0,108020.0,0.95511286]
[1756708290096,0.01893628,108030.0,108020.0,0.88850253]
[1756708290296,0.01893628,108030.0,108020.0,0.3638]
[1756708290890,0.01893628,108030.0,108020.0,0.3628]
[1756708291087,0.01893628,108030.0,108020.0,0.3658]
[1756708292699,0.29363881,108030.0,108020.0,0.3658]
[1756708293204,0.01893628,108030.0,108020.0,0.3658]
[1756708294899,0.86945628,108030.0,108020.0,0.3658]
[1756708295102,0.86945628,108030.0,108020.0,0.64050253]
[1756708295489,0.86945628,108030.0,108020.0,0.3658]
[1756708299404,1.22945628,108030.0,108020.0,0.3658]
[1756708300304,0.86945628,108030.0,108020.0,0.3658]
[1756708300693,0.01893628,108030.0,108020.0,0.3658]
[1756708300898,0.86873628,108030.0,108020.0,0.3658]
[1756708301096,0.86873628,108030.0,108020.0,0.64050253]
[1756708301294,0.86873628,108030.0,108020.0,0.3658]
[1756708301497,0.86873628,108030.0,108020.0,0.64050253]
[1756708302506,0.86873628,108030.0,108020.0,0.3658]
[1756708302708,1.14343881,108030.0,108020.0,0.3658]
[1756708303299,0.86873628,108030.0,108020.0,0.3658]
[1756708308599,0.01893628,108030.0,108020.0,0.89050253]
[1756708309207,0.01893628,108030.0,108020.0,0.95711286]
[1756708309406,0.01893628,108030.0,108020.0,1.04967826]
[1756708309606,0.01893628,108030.0,108020.0,0.95711286]
[1756708310008,0.77196,108040.0,108020.0,0.95711286]
[1756708310209,0.77196,108040.0,108030.0,0.63550253]
[1756708310909,0.77196,108040.0,108030.0,0.70211286]
[1756708311898,0.65390491,108060.0,108030.0,0.70311286]
[1756708312098,0.84932,108050.0,108040.0,0.3608]
[1756708312405,1.20932,108050.0,108040.0,0.38103634]
[1756708313709,1.20932,108050.0,108040.0,0.45486146]
[1756708314104,1.20932,108050.0,108040.0,0.38203634]
[1756708315408,1.21032,108050.0,108040.0,0.38203634]
[1756708316209,1.21032,108050.0,108040.0,0.08784667]
[1756708316210,1.48502253,108050.0,108040.0,0.08784667]
[1756708316405,1.48502253,108050.0,108040.0,0.02123634]
[1756708316806,1.48502253,108050.0,108040.0,0.08784667]
[1756708317309,1.48502253,108050.0,108040.0,0.02123634]
[1756708317510,1.48502253,108050.0,108040.0,0.44864667]
[1756708317710,1.21032,108050.0,108040.0,0.44864667]
[1756708318800,1.21032,108050.0,108040.0,0.52218984]
[1756708319709,1.21032,108050.0,108040.0,0.45557951]
[1756708320404,1.21032,108050.0,108040.0,0.09477951]
[1756708320619,1.21032,108050.0,108040.0,0.45557951]
[1756708321812,1.21032,108050.0,108040.0,0.09477951]
[1756708322112,2.09582253,108050.0,108040.0,0.09477951]
[1756708323211,2.09582253,108050.0,108040.0,0.02123634]
[1756708323407,2.11658649,108050.0,108040.0,0.02123634]
[1756708327517,1.26726649,108050.0,108040.0,0.02123634]
[1756708327718,2.11594649,108050.0,108040.0,0.02123634]
[1756708327924,0.38176396,108050.0,108040.0,0.38203634]
[1756708328123,1.23076396,108050.0,108040.0,0.02123634]
[1756708328322,1.21,108050.0,108040.0,0.02123634]
[1756708328628,0.361,108050.0,108040.0,0.02123634]
[1756708328819,1.21,108050.0,108040.0,0.54593887]
[1756708329922,0.85008,108050.0,108040.0,0.54593887]
[1756708330127,0.85008,108050.0,108040.0,0.90673887]
[1756708331128,0.001,108050.0,108040.0,0.90673887]
[1756708331324,0.85008,108050.0,108040.0,0.90673887]
[1756708331725,0.85008,108050.0,108040.0,0.54593887]
[1756708331926,0.85008,108050.0,108040.0,0.98113349]
[1756708333829,0.85008,108050.0,108040.0,0.70643096]
[1756708334043,0.85008,108050.0,108040.0,0.62033349]
[1756708334330,0.85008,108050.0,108040.0,0.09563096]
[1756708334626,1.37478253,108050.0,108040.0,0.07539462]
[1756708334831,2.13634196,108050.0,108040.0,0.001]
[1756708337732,2.11558253,108050.0,108040.0,0.001]
[1756708339933,1.01650253,108050.0,108040.0,0.001]
[1756708340234,1.86502253,108050.0,108040.0,0.001]
[1756708342326,1.01650253,108050.0,108040.0,0.001]
[1756708342636,1.86490253,108050.0,108040.0,0.001]
[1756708344935,1.01650253,108050.0,108040.0,0.001]
[1756708345140,1.59004,108050.0,108040.0,0.59817954]
[1756708345332,1.59,108050.0,108040.0,0.52570253]
[1756708345735,1.2292,108050.0,108040.0,0.52570253]
[1756708346240,1.2292,108050.0,108040.0,0.251]
[1756708346441,1.32390253,108050.0,108040.0,0.251]
[1756708346638,1.68470253,108050.0,108040.0,0.251]
[1756708347541,1.32390253,108050.0,108040.0,0.251]
[1756708347741,1.0492,108050.0,108040.0,0.251]
[1756708348344,1.32390253,108050.0,108040.0,0.251]
[1756708349438,1.32390253,108050.0,108040.0,0.32468385]
[1756708349641,1.0492,108050.0,108040.0,0.32468385]
[1756708350237,1.41,108050.0,108040.0,0.32468385]
[1756708350632,1.68470253,108050.0,108040.0,0.32468385]
[1756708351941,1.68470253,108050.0,108040.0,0.07468385]
[1756708353040,0.83650253,108050.0,108040.0,0.07468385]
[1756708353242,1.40968,108050.0,108040.0,0.07468385]
[1756708356047,0.5618,108050.0,108040.0,0.07468385]
[1756708356247,1.40984,108050.0,108040.0,0.07468385]
[1756708356849,0.5618,108050.0,108040.0,0.07468385]
[1756708357038,1.40972,108050.0,108040.0,0.07468385]
[1756708357940,1.43050182,108050.0,108040.0,0.07468385]
[1756708359349,1.43050182,108050.0,108040.0,0.34938638]
[1756708359350,0.58258182,108050.0,108040.0,0.34938638]
[1756708359546,1.40968,108050.0,108040.0,0.34938638]
[1756708360749,1.40968,108050.0,108040.0,0.07468385]
[1756708361049,1.04888,108050.0,108040.0,0.07468385]
[1756708361250,1.40968,108050.0,108040.0,0.07468385]
[1756708362152,1.43046933,108050.0,108040.0,0.07468385]
[1756708362453,1.70517186,108050.0,108040.0,0.07468385]
[1756708362654,1.43046933,108050.0,108040.0,0.07468385]
[1756708363553,1.06966933,108050.0,108040.0,0.07468385]
[1756708363750,0.201,108050.0,108040.0,0.96018638]
[1756708363956,0.84888,108050.0,108040.0,1.02679671]
[1756708368359,0.001,108050.0,108040.0,1.02679671]
[1756708379281,0.001,108050.0,108040.0,0.77679671]
[1756708384578,0.01846415,108070.0,108040.0,1.10679671]
[1756708384774,1.20490253,108080.0,108060.0,0.27470253]
[1756708384970,1.55565073,108080.0,108060.0,0.27470253]
[1756708386278,1.55565073,108080.0,108050.0,0.44763504]
[1756708386472,1.55565073,108080.0,108060.0,0.27470253]
[1756708386977,1.55865073,108080.0,108060.0,0.27470253]
[1756708387579,1.53490253,108080.0,108060.0,0.27470253]
[1756708387877,1.53590253,108080.0,108060.0,0.27470253]
[1756708388073,1.53590253,108080.0,108060.0,0.001]
[1756708388376,1.53590253,108080.0,108060.0,0.27570253]
[1756708390584,1.53490253,108080.0,108060.0,0.27570253]
[1756708390884,1.53490253,108080.0,108060.0,0.28515857]
[1756708392283,1.53490253,108080.0,108060.0,0.01045604]
[1756708392885,1.2602,108080.0,108060.0,0.01045604]
[1756708393180,1.55566105,108080.0,108060.0,0.01045604]
[1756708394187,0.27470253,108070.0,108060.0,0.01045604]
[1756708394389,0.62470253,108070.0,108060.0,0.01045604]
[1756708395694,0.35,108070.0,108060.0,0.01045604]
[1756708396798,0.62470253,108070.0,108060.0,0.00945604]
[1756708397093,0.62470253,108070.0,108060.0,0.001]
[1756708397295,0.35,108070.0,108060.0,0.001]
[1756708397485,0.62470253,108070.0,108060.0,0.001]
[1756708399988,1.23550253,108070.0,108060.0,0.001]
[1756708400400,1.23550253,108070.0,108060.0,0.01003651]
[1756708400696,1.25443668,108070.0,108060.0,0.01003651]
[1756708401396,1.27520322,108070.0,108040.0,0.16052208]
[1756708401704,0.27470253,108050.0,108040.0,0.53042605]
[1756708401993,0.64470253,108050.0,108040.0,0.16962605]
[1756708402196,0.37,108050.0,108040.0,0.16962605]
[1756708402787,0.64470253,108050.0,108040.0,0.17062605]
[1756708403595,0.27470253,108050.0,108040.0,0.17062605]
[1756708403995,1.20828,108060.0,108040.0,0.17062605]
[1756708403996,1.48298253,108060.0,108040.0,0.17062605]
[1756708404196,1.80298253,108060.0,108040.0,0.17062605]
[1756708404998,0.59470253,108060.0,108040.0,0.80612858]
[1756708405199,0.32,108060.0,108050.0,0.27470253]
[1756708405399,1.16748,108060.0,108050.0,0.63550253]
[1756708405598,1.16748,108060.0,108050.0,0.27470253]
[1756708405803,1.16748,108060.0,108040.0,0.80612858]
[1756708405999,1.16748,108060.0,108040.0,0.80512858]
[1756708406200,1.16748,108060.0,108040.0,0.80612858]
[1756708407300,1.16748,108060.0,108040.0,0.53142605]
[1756708407603,1.52828,108060.0,108040.0,0.80612858]
[1756708408300,0.6808,108060.0,108040.0,0.80812858]
[1756708408502,1.16752,108060.0,108040.0,0.80812858]
[1756708408901,1.16752,108060.0,108050.0,0.27470253]
[1756708409103,1.16752,108060.0,108040.0,0.80812858]
[1756708409302,0.32,108060.0,108040.0,0.80812858]
[1756708409503,1.16748,108060.0,108050.0,0.27470253]
[1756708411706,1.16748,108060.0,108050.0,0.001]
[1756708412906,1.52828,108060.0,108050.0,0.001]
[1756708413104,1.80298253,108060.0,108050.0,0.001]
[1756708414906,1.80398253,108060.0,108040.0,0.37771825]
[1756708415095,1.80398253,108060.0,108050.0,0.001]
[1756708415907,1.80398253,108060.0,108040.0,0.37771825]
[1756708416107,1.80398253,108060.0,108040.0,0.44432858]
[1756708416709,1.80398253,108060.0,108040.0,0.73851825]
[1756708417401,1.44318253,108060.0,108040.0,0.73851825]
[1756708417907,1.80398253,108060.0,108040.0,0.73851825]
[1756708418104,1.80298253,108060.0,108040.0,0.73851825]
[1756708418506,1.80298253,108060.0,108040.0,0.73951825]
[1756708419511,1.80298253,108060.0,108040.0,0.74051825]
[1756708420609,1.80298253,108060.0,108040.0,0.46581572]
[1756708421003,1.8237777,108060.0,108040.0,0.46581572]
[1756708421303,0.27470253,108050.0,108040.0,0.10501572]
[1756708421499,0.59470253,108050.0,108040.0,0.10401572]
[1756708423105,0.59470253,108050.0,108040.0,0.10301572]
[1756708423106,0.95550253,108050.0,108040.0,0.10301572]
[1756708423304,0.95550253,108050.0,108040.0,0.10401572]
[1756708428314,1.20550253,108050.0,108040.0,0.10401572]
[1756708429212,2.05294253,108050.0,108040.0,0.10401572]
[1756708439427,1.80294253,108050.0,108040.0,0.10401572]
[1756708443925,1.80321636,108050.0,108040.0,0.10401572]
[1756708444133,2.34900542,108050.0,108040.0,0.001]
[1756708446132,2.34892542,108050.0,108040.0,0.01019281]
[1756708447332,2.34892542,108050.0,108040.0,0.001]
[1756708448133,2.07399536,108050.0,108040.0,0.001]
[1756708453037,1.23588812,108050.0,108040.0,0.001]
[1756708453240,2.08324812,108050.0,108040.0,0.001]
[1756708453736,2.07399536,108050.0,108040.0,0.001]
[1756708457242,0.97663536,108050.0,108040.0,0.001]
[1756708457445,1.82399536,108050.0,108040.0,0.001]
[1756708457845,0.7016127,108050.0,108040.0,0.251]
[1756708458040,1.5489727,108050.0,108040.0,0.251]
[1756708458248,1.44238266,108050.0,108040.0,0.251]
[1756708460345,1.44238266,108050.0,108040.0,0.6118]
[1756708460848,0.65493562,108060.0,108040.0,0.68674992]
[1756708461050,0.84732,108050.0,108040.0,0.71177258]
[1756708461249,0.84732,108050.0,108040.0,0.96177258]
[1756708461450,0.84732,108050.0,108040.0,0.43674992]
[1756708461651,1.19732,108050.0,108040.0,0.43674992]
[1756708462345,0.35,108050.0,108040.0,0.43674992]
[1756708462546,1.19732,108050.0,108040.0,0.77838291]
[1756708463663,0.01911296,108060.0,108040.0,1.02838291]
[1756708463855,0.39911296,108060.0,108050.0,0.63582266]
[1756708464054,1.24639296,108060.0,108050.0,0.3608]
[1756708464252,1.24639296,108060.0,108050.0,0.6108]
[1756708466165,1.52141562,108060.0,108050.0,0.25]
[1756708466561,1.52141562,108060.0,108050.0,0.251]
[1756708467167,1.52241562,108060.0,108050.0,0.251]
[1756708467864,1.52141562,108060.0,108050.0,0.251]
[1756708472577,1.24639296,108060.0,108050.0,0.251]
[1756708472778,1.52141562,108060.0,108050.0,0.251]
[1756708473468,1.52141562,108060.0,108050.0,0.001]
[1756708477979,1.52117562,108060.0,108050.0,0.001]
[1756708478882,0.67413562,108060.0,108050.0,0.001]
[1756708479084,1.52117562,108060.0,108050.0,0.001]
[1756708479676,1.52117562,108060.0,108050.0,0.02828]
[1756708486186,1.88197562,108060.0,108050.0,0.02828]
[1756708486886,2.40699828,108060.0,108050.0,0.02828]
[1756708487385,2.42781644,108060.0,108050.0,0.02728]
[1756708487587,2.42881644,108060.0,108050.0,0.02728]
[1756708491496,2.42882377,108060.0,108050.0,0.02728]
[1756708494695,2.42866377,108060.0,108050.0,0.02728]
[1756708494897,1.58178377,108060.0,108050.0,0.02728]
[1756708495095,2.42866377,108060.0,108050.0,0.02728]
[1756708496799,1.58178377,108060.0,108050.0,0.02728]
[1756708497001,2.42866377,108060.0,108050.0,0.02728]
[1756708499310,2.17866377,108060.0,108050.0,0.02728]
[1756708500301,1.33178377,108060.0,108050.0,0.02728]
[1756708500505,2.17870377,108060.0,108050.0,0.02728]
[1756708500703,1.05676111,108060.0,108050.0,0.02728]
[1756708501006,1.90364111,108060.0,108050.0,0.02728]
[1756708501802,1.90364111,108060.0,108040.0,0.07341737]
[1756708502008,0.27502266,108050.0,108030.0,0.64496374]
[1756708502207,0.84692,108040.0,108030.0,0.64496374]
[1756708502506,0.97692,108040.0,108030.0,0.64496374]
[1756708503207,0.97692,108040.0,108030.0,0.36994108]
[1756708503411,0.97692,108040.0,108030.0,0.37094108]
[1756708504107,1.25194266,108040.0,108030.0,0.37094108]
[1756708504313,0.97692,108040.0,108030.0,0.37094108]
[1756708504521,0.97692,108040.0,108030.0,0.37294108]
[1756708505519,0.97692,108040.0,108030.0,0.40022108]
[1756708507720,1.25194266,108040.0,108030.0,0.40022108]
[1756708510622,1.61274266,108040.0,108030.0,0.03942108]
[1756708512618,1.25186266,108040.0,108030.0,0.03942108]
[1756708512824,0.97684,108040.0,108030.0,0.03942108]
[1756708513922,1.25186266,108040.0,108030.0,0.03942108]
[1756708514519,1.61266266,108040.0,108030.0,0.03942108]
[1756708515825,0.76582266,108040.0,108030.0,0.03942108]
[1756708516126,1.61266266,108040.0,108030.0,0.03942108]
[1756708519729,1.79266266,108040.0,108030.0,0.03942108]
[1756708520426,1.79262266,108040.0,108030.0,0.03942108]
[1756708523630,0.94582266,108040.0,108030.0,0.03942108]
[1756708523833,1.79262266,108040.0,108030.0,0.03942108]
[1756708526632,1.62356218,108040.0,108030.0,0.03942108]
[1756708528034,1.62356218,108040.0,108030.0,0.03028]
[1756708528824,1.88356218,108040.0,108030.0,0.03028]
[1756708530330,1.03676218,108040.0,108030.0,0.03028]
[1756708530534,1.88352218,108040.0,108030.0,0.03028]
[1756708530933,1.03676218,108040.0,108030.0,0.03028]
[1756708531236,1.72352218,108040.0,108030.0,0.03028]
[1756708531937,0.60173952,108040.0,108030.0,0.03028]
[1756708532133,1.72352218,108040.0,108030.0,0.03028]
[1756708534832,0.87676218,108040.0,108030.0,0.03028]
[1756708535435,1.42756,108040.0,108030.0,0.64275532]
[1756708535938,1.42756,108040.0,108030.0,0.36773266]
[1756708536437,1.06676,108040.0,108030.0,0.36773266]
[1756708536632,1.06676,108040.0,108030.0,0.72853266]
[1756708543046,1.34178266,108040.0,108030.0,0.72853266]
[1756708548949,1.34178266,108040.0,108030.0,0.66192233]
[1756708549550,1.34178266,108040.0,108030.0,0.72853266]
[1756708550348,0.49502266,108040.0,108030.0,0.47853266]
[1756708550548,0.22,108040.0,108030.0,0.75355532]
[1756708550757,0.37931,108060.0,108030.0,1.00355532]
[1756708550951,0.84664,108050.0,108040.0,0.27502266]
[1756708551253,1.19664,108050.0,108040.0,0.27502266]
[1756708551455,1.19664,108050.0,108040.0,0.63582266]
[1756708551756,1.19664,108050.0,108040.0,0.70243299]
[1756708551954,1.19664,108050.0,108040.0,0.42741033]
[1756708552962,1.19664,108050.0,108040.0,0.50080542]
[1756708554458,1.19664,108050.0,108040.0,0.50180542]
[1756708554654,0.35,108050.0,108040.0,1.05409808]
[1756708554861,0.86511,108060.0,108040.0,1.05409808]
[1756708555056,1.24511,108060.0,108050.0,0.3608]
[1756708555655,1.52013266,108060.0,108050.0,0.3608]
[1756708557757,1.52013266,108060.0,108050.0,0.3618]
[1756708559064,1.52113266,108060.0,108050.0,0.3618]
[1756708559666,1.52013266,108060.0,108050.0,0.3618]
[1756708563269,1.52013266,108060.0,108050.0,0.001]
[1756708565673,2.13093266,108060.0,108050.0,0.001]
[1756708566078,2.15186548,108060.0,108050.0,0.001]
[1756708566263,2.40595532,108060.0,108050.0,0.001]
[1756708566469,2.42688918,108060.0,108050.0,0.001]
[1756708567774,2.42788918,108060.0,108050.0,0.001]
[1756708568569,2.42788918,108060.0,108040.0,0.02727]
[1756708568774,0.63582266,108050.0,108040.0,0.02727]
[1756708568979,0.99675652,108050.0,108040.0,0.02727]
[1756708570877,0.99675652,108050.0,108040.0,0.02827]
[1756708575279,1.84315652,108050.0,108040.0,0.02827]
[1756708577179,1.46142266,108050.0,108040.0,0.02827]
[1756708578482,0.37931,108060.0,108040.0,0.02827]
[1756708578678,1.12142266,108050.0,108040.0,0.02827]
[1756708579176,1.142372,108050.0,108040.0,0.10248693]
[1756708579376,1.142372,108050.0,108040.0,0.02827]
[1756708579572,0.8464,108050.0,108040.0,0.27827]
[1756708580880,0.8464,108050.0,108040.0,0.27727]
[1756708581079,0.8464,108050.0,108040.0,0.27827]
[1756708581279,1.12142266,108050.0,108040.0,0.27827]
[1756708582878,0.8464,108050.0,108040.0,0.27827]
[1756708583582,0.8464,108050.0,108040.0,0.35142817]
[1756708583972,0.86735216,108050.0,108040.0,0.35142817]
[1756708584177,0.86735216,108050.0,108040.0,0.71222817]
[1756708586686,1.14237482,108050.0,108040.0,0.71222817]
[1756708586886,1.14237482,108050.0,108040.0,0.35142817]
[1756708590476,0.02095216,108050.0,108040.0,0.35142817]
[1756708590786,1.14229482,108050.0,108040.0,0.35142817]
[1756708591189,1.12134266,108050.0,108040.0,0.35142817]
[1756708591386,1.14230294,108050.0,108040.0,0.35142817]
[1756708595593,0.02096028,108050.0,108040.0,0.35142817]
[1756708595786,0.86724028,108050.0,108040.0,0.35142817]
[1756708596591,1.14226294,108050.0,108040.0,0.35142817]
[1756708597090,1.14226294,108050.0,108040.0,0.71222817]
[1756708597781,1.50306294,108050.0,108040.0,0.35142817]
[1756708598893,1.14226294,108050.0,108040.0,0.35142817]
[1756708600094,1.50306294,108050.0,108040.0,0.35142817]
[1756708603796,1.75306294,108050.0,108040.0,0.10142817]
[1756708605700,1.39226294,108050.0,108040.0,0.10142817]
[1756708605999,1.75306294,108050.0,108040.0,0.10142817]
[1756708606401,1.75302294,108050.0,108040.0,0.10142817]
[1756708611803,1.75302294,108050.0,108040.0,0.02827]
[1756708616506,1.73206266,108050.0,108040.0,0.02827]
[1756708617408,1.75300509,108050.0,108040.0,0.02827]
[1756708619210,1.50300509,108050.0,108040.0,0.02827]
[1756708619905,1.75300509,108050.0,108040.0,0.02827]
[1756708622407,1.75299629,108050.0,108040.0,0.02827]
[1756708622911,0.90675629,108050.0,108040.0,0.02827]
[1756708623112,1.75299629,108050.0,108040.0,0.02827]
[1756708624310,2.02801895,108050.0,108020.0,0.02964413]
[1756708624507,0.91084532,108030.0,108020.0,0.00905993]
[1756708624706,0.95019832,108030.0,108010.0,0.06649494]
[1756708624912,1.12130266,108020.0,108010.0,0.06649494]
[1756708625111,0.37921937,108030.0,108000.0,0.44808377]
[1756708625406,1.12126266,108020.0,108000.0,0.82808377]
[1756708625611,1.12126266,108020.0,108000.0,1.07808377]
[1756708625811,1.12126266,108020.0,108000.0,0.82808377]
[1756708626213,0.27502266,108010.0,108000.0,0.82808377]
[1756708626408,0.84624,108020.0,108000.0,0.82808377]
[1756708626409,0.84624,108020.0,108000.0,1.07808377]
[1756708626706,0.27502266,108010.0,108000.0,1.07808377]
[1756708627010,0.27502266,108010.0,108000.0,0.82808377]
[1756708627409,0.27502266,108010.0,108000.0,0.76158883]
[1756708628009,0.27502266,108010.0,108000.0,0.76558883]
[1756708628216,0.27502266,108010.0,108000.0,0.77058883]
[1756708628414,0.27502266,108010.0,108000.0,0.83708377]
[1756708628715,0.27502266,108010.0,108000.0,0.84646305]
[1756708630805,1.12134266,108010.0,108000.0,0.84646305]
[1756708632417,1.12134266,108010.0,108000.0,0.77996811]
[1756708633018,0.63502266,108010.0,108000.0,0.77996811]
[1756708633219,1.48138266,108010.0,108000.0,0.77996811]
[1756708633618,1.48138266,108010.0,108000.0,0.39996811]
[1756708634120,0.63502266,108010.0,108000.0,0.39996811]
[1756708634321,1.48138266,108010.0,108000.0,0.39996811]
[1756708638124,1.48138266,108010.0,108000.0,0.46646305]
[1756708638925,1.48138266,108010.0,108000.0,0.39996811]
[1756708639225,1.48138266,108010.0,108000.0,0.46646305]
[1756708641521,1.48138266,108010.0,108000.0,0.10566305]
[1756708641722,1.48138266,108010.0,108000.0,0.03916811]
[1756708643927,0.63502266,108010.0,108000.0,0.03916811]
[1756708644128,0.63502266,108010.0,108000.0,0.39996811]
[1756708644129,0.8464,108010.0,108000.0,0.39996811]
[1756708646121,0.65455858,108020.0,108000.0,0.39996811]
[1756708646320,0.8464,108010.0,108000.0,0.39996811]
[1756708647828,0.8464,108010.0,108000.0,0.39596811]
[1756708648030,0.8464,108010.0,108000.0,0.40096811]
[1756708650432,0.65455858,108020.0,108000.0,0.40096811]
[1756708650636,0.8464,108010.0,108000.0,0.40096811]
[1756708651528,1.12142266,108010.0,108000.0,0.40096811]
[1756708651928,1.47142266,108010.0,108000.0,0.40096811]
[1756708652534,1.47142266,108010.0,108000.0,0.46746305]
[1756708654235,1.1964,108010.0,108000.0,0.46746305]
[1756708654436,1.1964,108010.0,108000.0,0.40096811]
[1756708657635,1.47142266,108010.0,108000.0,0.40096811]
[1756708657835,1.1964,108010.0,108000.0,0.40096811]
[1756708658136,1.47151757,108010.0,108000.0,0.67608568]
[1756708660941,1.47151757,108010.0,108000.0,0.40096811]
[1756708661141,1.47151757,108010.0,108000.0,0.67608568]
[1756708661846,1.47151757,108010.0,108000.0,0.31528568]
[1756708662042,1.47151757,108010.0,108000.0,0.67608568]
[1756708662352,1.47151757,108010.0,108000.0,0.40096811]
[1756708662943,1.47151757,108010.0,108000.0,0.67608568]
[1756708663638,1.47151757,108010.0,108000.0,0.40096811]
[1756708663944,1.47151757,108010.0,108000.0,0.04016811]
[1756708664340,1.47151757,108010.0,108000.0,0.10666305]
[1756708665042,1.1964,108010.0,108000.0,0.10666305]
[1756708665242,1.47151757,108010.0,108000.0,0.10666305]
[1756708668948,1.1964,108010.0,108000.0,0.10666305]
[1756708669142,1.47151757,108010.0,108000.0,0.10666305]
[1756708671740,1.99663514,108010.0,108000.0,0.07649494]
[1756708671942,2.37840428,108010.0,108000.0,0.01]
[1756708672947,2.37860428,108010.0,108000.0,0.01]
[1756708673550,2.37860428,108010.0,108000.0,0.006]
[1756708673746,0.02096914,108010.0,108000.0,0.37608836]
[1756708673954,0.85632,108010.0,108000.0,1.24281844]
[1756708674248,0.01873592,108020.0,108000.0,1.5063235]
[1756708674448,0.78821592,108020.0,108010.0,0.70248418]
[1756708674646,2.59187757,108040.0,108010.0,1.54103514]
[1756708674849,0.84812,108030.0,108020.0,0.42735079]
[1756708675155,0.36,108030.0,108020.0,0.70246836]
[1756708675354,1.48323757,108030.0,108020.0,0.70246836]
[1756708675652,0.63511757,108030.0,108020.0,0.70246836]
[1756708675853,1.48315757,108030.0,108020.0,0.70246836]
[1756708676053,1.20804,108030.0,108020.0,0.70233969]
[1756708676351,0.36,108030.0,108020.0,0.70233969]
[1756708676544,1.20804,108030.0,108020.0,0.70233969]
[1756708677457,0.36,108030.0,108020.0,0.70233969]
[1756708677752,0.18,108030.0,108020.0,0.70433969]
[1756708677956,1.02844,108030.0,108020.0,0.70433969]
[1756708678349,0.18,108030.0,108020.0,0.95433969]
[1756708678555,1.03132,108030.0,108020.0,0.95433969]
[1756708679146,1.03132,108030.0,108020.0,0.70433969]
[1756708679652,0.18,108030.0,108020.0,0.70433969]
[1756708679852,0.18,108030.0,108020.0,0.95533969]
[1756708681258,0.18,108030.0,108020.0,0.95433969]
[1756708681460,0.18,108030.0,108020.0,0.8877889]
[1756708681756,0.18,108030.0,108020.0,0.3628]
[1756708682258,0.6049889,108030.0,108020.0,0.3628]
[1756708682556,0.2749889,108030.0,108020.0,0.3628]
[1756708682753,0.6349889,108030.0,108020.0,0.42935079]
[1756708683154,0.6349889,108030.0,108020.0,0.3628]
[1756708683358,0.6349889,108030.0,108020.0,0.002]
[1756708684464,0.6349889,108030.0,108020.0,0.3628]
[1756708685062,0.6349889,108030.0,108020.0,0.002]
[1756708686460,0.2749889,108040.0,108020.0,0.6377889]
[1756708686659,0.8478,108030.0,108020.0,0.6377889]
[1756708686864,0.13,108030.0,108020.0,0.6377889]
[1756708687164,0.8478,108040.0,108020.0,0.8877889]
[1756708687358,1.2078,108040.0,108030.0,0.3608]
[1756708688955,1.2078,108040.0,108030.0,0.6357889]
[1756708689367,1.2078,108040.0,108030.0,0.3608]
[1756708691067,1.2078,108040.0,108030.0,0.3618]
[1756708691267,0.36,108040.0,108030.0,0.3618]
[1756708691866,0.36,108040.0,108030.0,0.3608]
[1756708692267,0.6349889,108040.0,108030.0,0.3608]
[1756708692467,0.6349889,108040.0,108020.0,0.6357889]
[1756708694170,0.6349889,108040.0,108030.0,0.3608]
[1756708694369,0.6349889,108040.0,108030.0,0.001]
[1756708694669,0.6349889,108040.0,108030.0,0.002]
[1756708695266,0.6349889,108040.0,108030.0,0.001]
[1756708695570,0.6349889,108040.0,108020.0,0.6367889]
[1756708695773,0.84828,108030.0,108020.0,0.6377889]
[1756708697172,0.84824,108030.0,108020.0,0.6377889]
[1756708697567,1.1231089,108040.0,108020.0,0.6377889]
[1756708697767,1.5031089,108040.0,108030.0,0.3608]
[1756708697972,1.22812,108040.0,108030.0,0.3608]
[1756708701475,1.5031089,108040.0,108030.0,0.3608]
[1756708701670,0.6549889,108040.0,108030.0,0.3608]
[1756708701872,1.22792,108040.0,108030.0,0.6357889]
[1756708702269,1.22896,108040.0,108030.0,0.6357889]
[1756708703975,1.22896,108040.0,108030.0,0.6367889]
[1756708704172,1.229,108040.0,108030.0,0.6367889]
[1756708704568,0.38,108040.0,108030.0,0.90731901]
[1756708704774,0.86798244,108050.0,108030.0,1.2488587]
[1756708704979,1.20798244,108050.0,108040.0,0.6357889]
[1756708707379,1.20798244,108050.0,108040.0,0.3608]
[1756708707778,1.20798244,108050.0,108040.0,0.6357889]
[1756708709675,1.20798244,108050.0,108040.0,0.3618]
[1756708709980,1.20798244,108050.0,108040.0,0.3628]
[1756708711482,1.20798244,108050.0,108040.0,0.6377889]
[1756708712372,1.20798244,108050.0,108040.0,0.3628]
[1756708713076,1.20798244,108050.0,108040.0,0.3618]
[1756708713274,1.20798244,108050.0,108040.0,0.43541028]
[1756708714679,1.20798244,108050.0,108040.0,0.71039918]
[1756708714983,1.20798244,108050.0,108040.0,0.43541028]
[1756708718789,1.20750244,108050.0,108040.0,0.79039918]
[1756708719685,0.86734244,108050.0,108040.0,0.79039918]
[1756708719889,0.86734244,108050.0,108040.0,0.85694997]
[1756708720085,0.01906244,108050.0,108040.0,0.58196107]
[1756708720289,0.01906244,108050.0,108040.0,0.85694997]
[1756708721389,0.01906244,108050.0,108040.0,0.58196107]
[1756708721590,0.01906244,108050.0,108040.0,0.77694997]
[1756708722290,0.01906244,108050.0,108040.0,0.50196107]
[1756708722991,0.86750244,108050.0,108040.0,0.77694997]
[1756708723694,0.86750244,108050.0,108040.0,0.84694997]
[1756708725896,0.86750244,108050.0,108040.0,0.57196107]
[1756708727396,1.14249134,108050.0,108040.0,0.50196107]
[1756708727901,0.86750244,108050.0,108040.0,0.50196107]
[1756708730304,0.84844,108050.0,108040.0,0.50196107]
[1756708730602,0.84844,108050.0,108040.0,0.77694997]
[1756708731602,0.84844,108050.0,108040.0,0.50196107]
[1756708733997,0.84844,108050.0,108040.0,0.77694997]
[1756708734500,0.84844,108050.0,108040.0,0.50196107]
[1756708734701,1.1234289,108050.0,108040.0,0.14116107]